Cogmind - Beta 17.1 @@@ ROGUE MODE // 2026.09.12 @ 23:28:13 Player: Bsuter Result: Destroyed by D-53 Grenadier with Mini Grenade Launcher Performance ------------- Evolutions (0) 0 Regions Visited (2) 400 Robots Destroyed (20) 100 Value Destroyed (523) 523 Prototype IDs (0) 0 Alien Tech Used (0) 0 Bonus (0) 0 TOTAL SCORE: 1023 Bonus ------- None Cogmind --------- Core Integrity 0/250 Matter 300/300 Energy 100/100 System Corruption 0% Temperature Cool (0) Movement Walking (120) Location -10/Mines Parts ------- > --- POWER (1) -------- (None) > --- PROPULSION (2) --- Aluminum Leg Aluminum Leg > --- UTILITY (2) ------ Large Storage Unit Targeting Computer > --- WEAPON (2) ------- (None) > --- INVENTORY (15) --- Improved Ion Engine Improved Ion Engine Improved Ion Engine Wheel Small Storage Unit Medium Storage Unit Large Storage Unit Small Laser Small Laser Small Laser Grenade Launcher Mini Grenade Launcher Welding Torch Mining Claw Peak State ------------ > --- POWER ------------ Improved Ion Engine > --- PROPULSION ------- Aluminum Leg Aluminum Leg > --- UTILITY ---------- Large Storage Unit > --- WEAPON ----------- Small Laser Mini Grenade Launcher > --- INVENTORY -------- Light Ion Engine Light Ion Engine Wheel Small Storage Unit Medium Storage Unit Large Storage Unit Medium Laser Small Laser Small Laser Small Laser Grenade Launcher Welding Torch Mining Claw [Rating: 9] Favorites ----------- Power Improved Ion Engine Engine Improved Ion Engine Propulsion Aluminum Leg Treads Light Treads Leg Aluminum Leg Utility Large Storage Unit Storage Large Storage Unit Processor Targeting Computer Weapon Small Laser Energy Gun Small Laser Launcher Mini Grenade Launcher Build | -11 -10 -10 ------- Run | Yrd Mat Min Slots Evolved . | . . . Power . | . . . Propulsion . | . . . Utility . | . . . Weapon . | . . . Parts Attached 17 | . 17 . Power 4 | . 4 . Engine 4 | . 4 . Core . | . . . Reactor . | . . . Propulsion 7 | . 7 . Treads 1 | . 1 . Leg 6 | . 6 . Wheel . | . . . Hover . | . . . Flight . | . . . Utility 2 | . 2 . Device . | . . . Storage 1 | . 1 . Processor 1 | . 1 . Hackware . | . . . Protection . | . . . Artifact . | . . . Weapon 4 | . 4 . Energy Gun 3 | . 3 . Energy Cannon . | . . . Ballistic Gun . | . . . Ballistic Cannon . | . . . Launcher 1 | . 1 . Special Weapon . | . . . Impact Weapon . | . . . Slashing Weapon . | . . . Piercing Weapon . | . . . Special Melee Weapon . | . . . Unidentified Prototypes . | . . . Parts Lost 8 | . 5 3 Power 2 | . 1 1 Propulsion 4 | . 4 . Utility . | . . . Weapon 2 | . . 2 Highest Loss Streak 3 | . 2 3 To Critical Strikes . | . . . Average Backups 13 | . 13 14 Power 2 | . 2 3 Propulsion 2 | . 2 1 Utility 2 | . 2 3 Weapon 4 | . 4 6 Tool/Special . | . . . Unused Backups 12 | . 2 10 Power 5 | . 2 3 Propulsion . | . . . Utility 3 | . . 3 Weapon 3 | . . 3 Tool/Special 1 | . . 1 Average Slot Usage (%) 87 | . 86 100 Engine 13 | . 13 14 Leg 27 | . 27 28 Storage 14 | . 14 14 Processor 3 | . 2 14 Energy Gun 24 | . 23 28 Launcher 3 | . 4 . Peak Build Rating 9 | . 9 9 Average Rating 7 | . 7 8 On Entrance 7 | 6 6 9 Avg Prop Armor Cover (%) . | . . . Naked Turns . | . . . Heaviest Build 31 | 11 31 30 Greatest Support 20 | 20 20 20 Greatest Overweight (x) 9 | . 9 1 Average Overweight (x) 1 | . 1 . Largest Inventory Capacity 15 | . 15 15 Average Capacity 14 | . 14 15 Most Carried 15 | . 15 14 Average Carried 13 | . 13 14 Final Capacity 15 | 8 15 15 Final Carried 14 | 6 14 14 Class Distribution -------------------- 100% | Mutant Dominant Class ---------------- Mutant | -10/Materials Mutant | -10/Mines Resources | -11 -10 -10 ----------- Run | Yrd Mat Min Matter Collected 465 | 200 265 . Remotely . | . . . Salvage Created 518 | . 490 28 Parts 26 | . 26 . Haulers Intercepted . | . . . Recyclers Shooed 1 | . 1 . Parts Field Recycled . | . . . Retrieved Matter . | . . . Parts Self-Destructed . | . . . Prevented . | . . . Parts Restored . | . . . Kills | -11 -10 -10 ------- Run | Yrd Mat Min Combat Hostiles Destroyed 16 | . 14 2 Guns 11 | . 9 2 AOE 5 | . 5 . Classes Destroyed 6 | . 6 . Builder 1 | . 1 . Recycler 1 | . 1 . Operator 1 | . 1 . Watcher 1 | . 1 . Swarmer 5 | . 3 2 Grunt 11 | . 11 . Best Kill Streak 6 | . 6 2 Combat Bots Only 4 | . 4 2 Max Kills in Single Turn 2 | . 2 2 Gunslinging 1 | . . 1 Exploded 2 | . 2 . Melee . | . . . Uniques/NPCs Destroyed . | . . . Combat | -11 -10 -10 -------- Run | Yrd Mat Min Hostile Shots Fired 106 | . 67 39 Missed 26 | . 15 11 Hits 80 | . 52 28 Projectile 80 | . 52 28 AOE 3 | . . 3 Critical Strikes 2 | . 1 1 Damage Taken 993 | . 659 334 Core 253 | . 174 79 Absorbed by Shields . | . . . Core Remaining (%) 100 | 100 . . Volleys Fired 47 | . 38 9 Largest 2 | . 2 2 Hottest 90 | . 90 90 Shots Fired 94 | . 76 18 Gun 82 | . 64 18 Cannon . | . . . Launcher 12 | . 12 . Special . | . . . Kinetic . | . . . Thermal 82 | . 64 18 Explosive 12 | . 12 . Electromagnetic . | . . . Robot Hit Streak 8 | . 8 3 Robot Miss Streak 4 | . 4 1 Penetration Max . | . . . Secondary Targets 2 | . 1 1 Max Gunslinging Chain 1 | . 1 1 Shots Hit Robots 59 | . 48 11 Core Hits 35 | . 33 2 Critical Kills . | . . . Critical Parts Destroyed . | . . . Critical Strikes 1 | . 1 . Burn 1 | . 1 . Melee Attacks . | . . . Impact . | . . . Slashing . | . . . Piercing . | . . . Sneak Attacks . | . . . Combat Hostiles . | . . . Follow-up Attacks . | . . . Damage Inflicted 1285 | . 1155 130 Guns 594 | . 464 130 Cannons . | . . . Explosions 691 | . 691 . Melee . | . . . Ramming . | . . . Kinetic . | . . . Thermal 594 | . 464 130 Explosive 691 | . 691 . Electromagnetic . | . . . Impact . | . . . Slashing . | . . . Piercing . | . . . Highest Corruption . | . . . Average Corruption . | . . . Corruption Purged . | . . . Corruption Blocked . | . . . Overload Shots . | . . . Overflow Damage 80 | . 80 . Projectiles . | . . . Explosions 80 | . 80 . Melee . | . . . Knockbacks . | . . . Impact . | . . . Kinetic . | . . . Secondary . | . . . Self-Inflicted Damage 89 | . 89 . Shots 2 | . 2 . Rammed . | . . . Targets Rammed . | . . . Kicked . | . . . Crushed . | . . . Highest Temperature 283 | . 283 231 Average Temperature 109 | . 104 127 Received Heat Transfer 270 | . 270 . Effects 2 | . 2 . Energy Bleed 2 | . 2 . Siege Activations . | . . . Martial Activations . | . . . Shielding Activations . | . . . Robots Disrupted . | . . . Combat Hostiles . | . . . Robots Corrupted . | . . . Combat Hostiles . | . . . Parts Fried . | . . . Impact Corruptions . | . . . Robots Melted . | . . . Combat Hostiles . | . . . Parts Melted 4 | . 2 2 Heat Transferred 1637 | . 1302 335 Parts Sabotaged . | . . . Parts Stolen . | . . . Parts Stripped . | . . . Power Chain Reactions . | . . . Alert | -11 -10 -10 ------- Run | Yrd Mat Min Maximum Alert Level . | . . . Low Security (%) 100 | . 100 100 Level 1 . | . . . Level 2 . | . . . Level 3 . | . . . Level 4 . | . . . Level 5 . | . . . High Security . | . . . Max Security . | . . . Peak Influence 124 | . 124 50 Initial . | . . . Average 46 | . 48 20 Influence Increases 505 | . 455 50 Destroy 0b10 Robot/C 320 | . 280 40 Destroy 0b10 Robot/NC 20 | . 20 . Destroy Leader 62 | . 52 10 Disable Machine 45 | . 45 . Destroy Structure 28 | . 28 . Lose Combat Pursuer 30 | . 30 . Influence Decreases 505 | . 455 50 Time Decay 425 | . 405 20 Lost Part 80 | . 50 30 Squads Dispatched 3 | . 3 . Investigation . | . . . Extermination . | . . . Reinforcement 3 | . 3 . Assault . | . . . Garrison . | . . . Intercept . | . . . Searches Triggered . | . . . Construction Impeded . | . . . Haulers Reinforced . | . . . Active Scanning Responses . | . . . Cargo Convoy Interrupts . | . . . Stealth | -11 -10 -10 --------- Run | Yrd Mat Min Distress Signals 3 | . 3 . Communications Jammed . | . . . Distress Signals . | . . . Times Spotted 29 | . 24 5 Peak Tracking Total 5 | . 5 3 Tactical Retreats 2 | . 2 . Traps | -11 -10 -10 ------- Run | Yrd Mat Min Traps Triggered . | . . . Indirectly . | . . . Trap Hack Attempts . | . . . Triggered . | . . . Disarmed . | . . . Reprogrammed . | . . . Reused . | . . . Traps Extracted . | . . . Installed . | . . . Triggered . | . . . Machines | -11 -10 -10 ---------- Run | Yrd Mat Min Machines Disabled 3 | . 3 . Max in Single Turn 1 | . 1 . Machines Repaired . | . . . Machines Dismantled . | . . . Machines Sabotaged . | . . . Overloaded Fab Kills . | . . . Hacking | -11 -10 -10 --------- Run | Yrd Mat Min Machines Accessed . | . . . Terminals . | . . . Fabricators . | . . . Repair Stations . | . . . Recycling Units . | . . . Scanalyzers . | . . . Garrison Access . | . . . Total Hacks . | . . . Successful . | . . . Failed . | . . . Catastrophic . | . . . Database Lockouts . | . . . Manual . | . . . Terminals . | . . . Fabricators . | . . . Repair Stations . | . . . Recycling Units . | . . . Scanalyzers . | . . . Garrison Access . | . . . Terminal Hacks . | . . . Fabricator Hacks . | . . . Repair Station Hacks . | . . . Recycling Unit Hacks . | . . . Scanalyzer . | . . . Garrison Access Hacks . | . . . Unauthorized Hacks . | . . . Terminals . | . . . Fabricators . | . . . Repair Stations . | . . . Recycling Units . | . . . Scanalyzers . | . . . Garrison Access . | . . . Data Cores Recovered . | . . . Used . | . . . Hacking Detections . | . . . Full Trace Events . | . . . Feedback Events . | . . . Feedback Blocked . | . . . Robot Schematics Acquired . | . . . Robots Built . | . . . Authchips . | . . . Time . | . . . Total Robot Build Rating . | . . . Part Schematics Acquired . | . . . Parts Built . | . . . Authchips . | . . . Time . | . . . Total Part Build Rating . | . . . Part Studies Acquired . | . . . Parts Repaired . | . . . Time . | . . . Parts Recycled . | . . . Recycled Matter . | . . . Retrieved Matter . | . . . Retrieved Components . | . . . Parts Scanalyzed . | . . . Part Schematics Acquired . | . . . Parts Damaged . | . . . Bothacking | -11 -10 -10 ------------ Run | Yrd Mat Min Used RIF Installer . | . . . Robots Hacked . | . . . Non-combat . | . . . Combat . | . . . Robot Hacks Applied . | . . . Relay Couplers Released . | . . . Fabnet Peak Effective % . | . . . Robots Rewired . | . . . Allies Hacked . | . . . Hacks Repelled . | . . . Allies | -11 -10 -10 -------- Run | Yrd Mat Min Total Allies . | . . . Largest Group . | . . . Highest-Rated Group . | . . . Highest-Rated Ally . | . . . Total Orders . | . . . Ally Attacks . | . . . Total Damage . | . . . Kills . | . . . Allies Corrupted . | . . . Allies Melted . | . . . Intel | -11 -10 -10 ------- Run | Yrd Mat Min Active Infowar (turns) . | . . . Robot Analysis Total . | . . . Derelict Logs Recovered . | . . . Drone Launches . | . . . Drone Recoveries . | . . . Exploration | -11 -10 -10 ------------- Run | Yrd Mat Min Turns Passed 1357 | . 1296 61 Spaces Moved 608 | 1 591 16 Core 1 | . 1 . Treads . | . . . Legs 607 | 1 590 16 Wheels . | . . . Hover . | . . . Flight . | . . . Fastest Speed 120 | 120 120 120 Average Speed 190 | 120 190 181 Slowest Speed 500 | 120 500 190 Overloaded Moves . | . . . Propulsion Burnouts . | . . . Robots Hopped . | . . . Potential Cave-ins . | . . . Cave-ins Triggered . | . . . Exploration Rate (%) 27 | 1 73 9 Regions Visited 2 Branch Regions 1 Pre-discovered Areas . | . . . Known Exits Taken . | . . . Unknown Exits Taken 2 | 1 1 . Scrap Searched . | . . . Spaces Dug . | . . . Terrain Destroyed 35 | . 35 . Melee . | . . . Projectile . | . . . AOE 35 | . 35 . Terrain Rammed . | . . . Walls Destroyed . | . . . Machines Disabled . | . . . Actions | -11 -10 -10 --------- Run | Yrd Mat Min Total 716 | . 686 30 Wait 28 | . 23 5 Move 606 | . 590 16 Hop . | . . . Pick Up 9 | . 9 . Fast Attach 4 | . 4 . Attach 5 | . 5 . Detach 3 | . 3 . Swap 8 | . 8 . Drop 6 | . 6 . Fire 47 | . 38 9 Melee . | . . . Ram . | . . . Kick . | . . . Crush . | . . . Escape Stasis . | . . . Rewire . | . . . Trap . | . . . Miscellaneous . | . . . Route ------- -11/Scrapyard -10/Materials (discovered 5 exits: [*Mat x3] / [*Min] / [*Sub]) -10/Mines (discovered 1 exit: [*Mat]) History --------- Turn | Location | Event 1 | -11/Scrapyard | Discovered new exit (range 0) 1 | -11/Scrapyard | Entered Materials 2 | -10/Materials | Met a group of wandering Federalists 308 | -10/Materials | Build established: Mutant 317 | -10/Materials | Discovered new exit (range 15) 451 | -10/Materials | Discovered new exit (range 5) 653 | -10/Materials | Core integrity fell below 50% 701 | -10/Materials | Discovered new exit (range 7) 797 | -10/Materials | Discovered new exit (range 16) 1123 | -10/Materials | Discovered new exit (range 16) 1297 | -10/Materials | Entered Mines 1330 | -10/Mines | Assembled infested the area 1348 | -10/Mines | Discovered new exit (range 10) 1357 | -10/Mines | Core integrity fell below 20% 1358 | -10/Mines | Destroyed by D-53 Grenadier with Mini Grenade Launcher Last Messages --------------- 01326_ Switching to secondary target: S-10 Pest. 01326_ Lgt. Ion Engine melted. 01326_ Flight Unit melted. 01326_ S-10 Pest destroyed. 01330_ ALERT: Infestation in the mines, dispatching Demolisher response squad. 01333_ R-06 Scavenger collects Lgt. Ion Engine. 01336_ R-06 Scavenger collects Flight Unit. 01346_ C-45 Heavy ARC bursts open, deploying its payload. 01346_ D-53 Grenadier unfolds itself. 01346_ K-01 Serf collects debris. 01348_ EXIT=FOUND 01350_ K-01 Serf collects debris. 01354_ Med. Laser destroyed. 01354_ Imp. Ion Engine destroyed. 01354_ K-01 Serf destroyed. 01354_ T-07 Excavator destroyed. 01356_ Sml. Laser destroyed. 01356_ K-01 Serf destroyed. Map ----- +----------------------------------------------------+ | ?????????????????????????????????????????????? | | ?????????????????????????????????????????????? | | ?????????????????????????????????????????????? | | ?????????????????????????????????????????????? | | ?????????????????????????????????????????????? | | ?????????????????????????????????????????????? | | ?????????????????????????????????????????????? | | ?????????????????????????????????????????????? | | ?????????????????????????????????????????????? | | ?????????????????????????????????????????????? | | ?????????????????????????????????????????????? | | ??????????????#??????????????????????????????? | | ?????????????? ??????????????????????????????? | | ??????????????%??????????????????????????????? | | ?????????????# #?????????????????????????????? | | ?????????????# #?????????????????????????????? | | ??????######## ?????????????????????????????? | | ??????# ## #?????????????????????????????? | | ??????# % ## ###?######????????????????????? | | ??????# ## # ## ##???????????????????? | | ??????# %## #???????????????????? | | ??????# % d ! [#???????????????????? | | ??????# """ = #???????????????????? | | ??????# """ #### %=##???????????????????? | | ??????# """ #?# * #????????????????????? | | ??????# #?# | = @% #????????????????????? | | ??????#######?## #????????????????????? | | ???????????????####### k#????????????????????? | | ?????????????????????? < #???????????????????? | | ??????????????????????# ??????????????????? | | ??????????????????????? !?????????????????? | | ??????????????????????? #????????????????? | | ???????????????????????? ##????????????????? | | ????????????????????????####?????????????????? | | ?????????????????????????????????????????????? | | ?????????????????????????????????????????????? | | | | | | | | | | | | | | | | | | | | | | | | | | | | | +----------------------------------------------------+ Best States ------------- Heat Dissipation 25 Energy Generation 12 Energy Capacity 265 Matter Stores 300 Matter Capacity 300 Sight Range 16 Terrain Scan Density 10 Evasion (%) 40 Targeting Accuracy 5 Item Schematics ----------------- None Robot Schematics ------------------ None Fabricated ------------ Nothing Repaired ---------- Nothing Studied --------- None Alien Tech Used ----------------- None Achievements -------------- None Challenges ------------ None Game ------ Seed SkeletonChipFlakker Manual? 0 Play Time 00:07:38 Cumulative 35.8 hours Start 2026.09.12 @ 23:21:01 End 2026.09.12 @ 23:28:13 Sessions 1 Manual Loads 0 Difficulty Rogue Special Mode None Game No. 42 Rogue 42 Adventurer 0 Explorer 0 Win Type - Total 0 Types 0/0/0/0/0/0/0/0/0/0 Lore% 22 Gallery% 25 Achievement% 22 Wizard Run 0 Options --------- Layout 1 ASCII 0 Keyboard 1 Movement Arrows Keybinds 1 Fullscreen 2 Font 36/Smallcaps Map View 50x40 Zoom Use 0% Tactical HUD 1 Map Filters NONE Filters NONE Steam 1 RUN: 7a8e245c-3fd3-4cfd-ba14-9a9edfb12f84